bitfinex-derivatives/quotes_ETHF0:USTF0_20251025
["timestamp","ask_amount","ask_price","bid_price","bid_amount"]
[1761419880992,0.91092052,3958.0,3957.9,0.88427349]
[1761419881200,0.91092052,3958.0,3957.9,1.21327349]
[1761419881702,0.91092052,3958.0,3957.9,1.43227349]
[1761419882399,0.91092052,3958.0,3957.9,0.7692]
[1761419888108,0.91092052,3958.0,3957.9,0.2212]
[1761419888301,0.4424,3957.8,3957.7,0.5516]
[1761419888506,0.7793,3957.8,3957.7,1.2170938]
[1761419888708,0.7793,3957.8,3957.7,1.4462938]
[1761419891207,5.8633,3957.8,3957.7,0.21029172]
[1761419891410,5.8633,3957.8,3956.9,1.36364013]
[1761419891411,0.7793,3956.4,3956.3,0.3212]
[1761419891713,0.7793,3956.4,3956.3,0.5516]
[1761419892315,1.68730902,3956.4,3956.3,0.55407424]
[1761419892506,0.7793,3956.4,3956.3,0.55407424]
[1761419901422,0.7793,3956.4,3956.3,0.78327424]
[1761419901622,0.7793,3956.7,3956.6,0.7808]
[1761419902016,0.3369,3957.0,3956.6,0.7808]
[1761419902221,0.7793,3957.3,3957.2,0.7808]
[1761419902623,0.2144,3957.3,3957.2,0.7808]
[1761419907635,0.5513,3957.3,3957.2,0.7808]
[1761419907938,0.3369,3957.9,3957.3,0.3212]
[1761419908130,0.2144,3957.4,3957.3,0.7808]
[1761419908531,0.5513,3957.4,3957.3,0.7808]
[1761419912440,0.7793,3957.4,3957.3,0.7808]
[1761419928157,0.2289,3957.5,3957.4,0.5613]
[1761419928350,0.7936,3957.5,3957.4,0.7765]
[1761419932257,1.69933124,3957.5,3957.4,0.7765]
[1761419932459,0.7936,3957.5,3957.4,0.7765]
[1761419941262,2.15219687,3957.5,3957.4,0.7765]
[1761419942460,0.90931678,3957.5,3957.4,0.7765]
[1761419942666,1.46841678,3957.5,3957.4,0.7765]
[1761419942862,1.69081678,3957.5,3957.4,0.7765]
[1761419948374,1e-08,3958.0,3957.9,0.7804]
[1761419948771,1e-08,3958.0,3957.9,2.59102534]
[1761419948973,0.7826,3959.0,3958.9,0.5528]
[1761419949873,0.78485918,3959.0,3958.9,0.5528]
[1761419950361,0.56945918,3959.0,3958.5,0.5844]
[1761419950567,0.7826,3958.7,3958.6,0.5528]
[1761419951572,0.7826,3958.7,3958.6,0.7804]
[1761419961591,0.5641,3958.7,3958.6,0.7804]
[1761419961790,0.7826,3958.9,3958.8,0.7804]
[1761419975493,0.2185,3958.9,3958.8,0.7804]
[1761419975694,0.00225918,3959.0,3958.9,0.7804]
[1761419975901,0.22075918,3959.0,3958.9,0.7804]
[1761419976099,0.56505918,3959.0,3958.9,0.7804]
[1761419976700,0.22075918,3959.0,3958.9,0.7804]
[1761419977301,1.81146249,3959.9,3958.9,0.7804]
[1761419977302,0.7826,3959.4,3959.3,0.7804]
[1761419978197,0.78566067,3959.4,3959.3,0.7804]
[1761419978397,0.78566067,3959.4,3959.3,0.78227273]
[1761419978699,0.44136067,3959.4,3959.3,0.78227273]
[1761419979095,0.76196067,3959.4,3959.3,0.78227273]
[1761419982302,0.00306067,3959.4,3959.3,0.78227273]
[1761419982513,0.22196067,3959.4,3959.3,0.78227273]
[1761419983107,0.54256067,3959.4,3959.3,0.78227273]
[1761419986117,0.54256067,3959.4,3959.3,1.43552479]
[1761419987509,0.22196067,3959.4,3959.3,1.43552479]
[1761419987715,0.22196067,3959.4,3959.3,2.11641059]
[1761419989319,0.54256067,3959.4,3959.3,1.43552479]
[1761419992720,0.76006067,3959.4,3959.3,1.43552479]
[1761420001327,0.76006067,3959.4,3959.3,0.98862479]
[1761420001527,0.76006067,3959.4,3959.3,1.20652479]
[1761420001927,0.76006067,3959.4,3959.3,1.42032479]
[1761420005229,0.76006067,3959.4,3959.3,2.10121059]
[1761420007233,0.76006067,3959.4,3959.3,1.42032479]
[1761420007621,0.76006067,3959.4,3959.3,2.10158262]
[1761420008231,0.76006067,3959.4,3959.3,1.42032479]
[1761420009440,0.76006067,3959.4,3959.3,0.76707273]
[1761420009623,0.76006067,3959.4,3959.3,1.42230631]
[1761420024427,0.76006067,3959.4,3959.3,0.65710631]
[1761420024635,0.76006067,3959.4,3959.0,0.3401]
[1761420024636,0.4416,3959.1,3959.0,0.3401]
[1761420024833,0.7785,3959.1,3959.0,0.3401]
[1761420025740,0.7785,3959.1,3959.0,0.34337771]
[1761420033345,0.7785,3959.1,3959.0,0.00327771]
[1761420039252,0.79220577,3959.1,3959.0,0.00327771]
[1761420046564,0.79220577,3959.1,3958.1,0.90784773]
[1761420046565,0.1316,3958.5,3958.0,0.68225948]
[1761420046770,0.1316,3958.5,3957.8,0.90784773]
[1761420046771,0.344,3957.9,3957.4,0.212]
[1761420046960,0.8081,3957.6,3957.5,0.96868865]
[1761420047266,0.82180577,3957.6,3957.5,0.531]
[1761420047455,0.82180577,3957.6,3957.5,0.53300805]
[1761420047858,0.82180577,3957.6,3957.5,0.00200805]
[1761420048462,0.82180577,3957.6,3957.5,0.32100805]
[1761420050365,0.82180577,3957.6,3957.5,0.00200805]
[1761420056271,0.82180577,3957.6,3957.5,0.32100805]
[1761420057273,0.82180577,3957.6,3957.5,0.53300805]
[1761420059875,0.82180577,3957.6,3957.5,0.75620805]
[1761420061369,0.01370577,3957.6,3957.5,0.75620805]
[1761420061674,0.55160577,3957.6,3957.5,0.89420805]
[1761420062174,0.78230577,3957.6,3957.5,0.89420805]
[1761420062671,0.01370577,3957.6,3957.5,0.89420805]
[1761420069981,0.23590577,3957.6,3957.5,0.89420805]
[1761420070682,0.58480577,3957.6,3957.5,0.89420805]
[1761420071181,0.23590577,3957.6,3957.5,0.89420805]
[1761420081794,0.01370577,3957.6,3957.5,0.89420805]
[1761420085898,0.81920577,3957.6,3957.5,0.89420805]
[1761420090298,0.82937045,3957.6,3957.5,0.89420805]
[1761420092102,0.82937045,3957.6,3957.5,0.75620805]
[1761420093705,0.82937045,3957.6,3957.5,0.89420805]
[1761420104701,9.72037045,3957.6,3957.5,0.89420805]
[1761420105412,0.82937045,3957.6,3957.5,0.89420805]
[1761420105607,9.72037045,3957.6,3957.5,0.89420805]
[1761420107217,0.82937045,3957.6,3957.5,0.89420805]
[1761420107410,9.72037045,3957.6,3957.5,0.89420805]
[1761420107813,0.82937045,3957.6,3957.5,0.89420805]
[1761420108014,9.72037045,3957.6,3957.5,0.89420805]
[1761420110719,9.72037045,3957.6,3957.5,0.32100805]
[1761420110920,9.72037045,3957.6,3957.5,0.00200805]
[1761420111419,9.72037045,3957.6,3957.5,0.34450805]
[1761420112824,10.62709908,3957.6,3957.5,0.34450805]
[1761420119729,10.62709908,3957.6,3957.5,0.55820805]
[1761420122838,9.72037045,3957.6,3957.5,0.55820805]
[1761420123232,9.72037045,3957.6,3957.5,0.34450805]
[1761420123532,9.72037045,3957.6,3957.5,0.00200805]
[1761420138440,0.82937045,3957.6,3957.5,0.00200805]
[1761420138642,0.3454,3956.8,3956.5,0.3222]
[1761420138846,0.7883,3956.6,3956.5,0.3222]
[1761420139447,0.81217045,3956.6,3956.5,0.3222]
[1761420139750,0.81506535,3956.6,3956.5,0.00327192]
[1761420143452,0.81506535,3956.6,3956.5,0.32547192]
[1761420155461,0.81506535,3956.6,3956.5,0.54077192]
[1761420160561,3.62906535,3956.6,3956.5,0.54077192]
[1761420161062,0.81506535,3956.6,3956.5,0.54077192]
[1761420161263,9.70606535,3956.6,3956.5,0.54077192]
[1761420161858,0.81506535,3956.6,3956.5,0.54077192]
[1761420162059,3.62906535,3956.6,3956.5,0.54077192]
[1761420164066,0.81506535,3956.6,3956.5,0.54077192]
[1761420164270,9.70606535,3956.6,3956.5,0.54077192]
[1761420165161,9.70606535,3956.6,3956.5,0.00327192]
[1761420166066,10.61273632,3956.6,3956.5,0.00327192]
[1761420168072,11.06607181,3956.6,3956.5,0.00327192]
[1761420170474,9.70606535,3956.6,3956.5,0.00327192]
[1761420172769,11.06607181,3956.6,3956.5,0.00327192]
[1761420175780,11.07972545,3956.6,3956.5,0.00327192]
[1761420176069,0.03752409,3956.6,3956.5,0.92477192]
[1761420177072,0.03990852,3956.6,3956.5,0.92477192]
[1761420178574,0.04157037,3956.6,3956.5,0.92477192]
[1761420178971,0.04253973,3956.6,3956.5,0.92477192]
[1761420181978,0.15483973,3956.6,3956.5,0.92477192]
[1761420182172,0.26713973,3956.6,3956.5,0.92477192]
[1761420182682,0.15483973,3956.6,3956.5,0.92477192]
[1761420185984,0.04253973,3956.6,3956.5,0.92477192]
[1761420193887,0.15503973,3956.6,3956.5,0.92477192]
[1761420195383,1.17349401,3956.6,3956.5,0.92477192]
[1761420198889,1.28599401,3956.6,3956.5,0.92477192]
[1761420200593,1.17349401,3956.6,3956.5,0.92477192]
[1761420202796,1.62424386,3956.6,3956.5,0.92477192]
[1761420202995,1.39924386,3956.6,3956.5,0.92477192]
[1761420203194,0.04253973,3956.6,3956.5,0.92477192]
[1761420221022,0.90490073,3957.0,3956.5,0.92477192]
[1761420221219,0.90490073,3957.2,3957.1,0.765]
[1761420222014,0.90490073,3957.4,3957.2,0.3314]
[1761420222210,0.90490073,3957.4,3957.0,0.1409]
[1761420222211,0.90743445,3957.4,3957.3,0.765]
[1761420222414,0.00253372,3957.4,3957.3,0.765]
[1761420222919,0.90743445,3957.4,3957.3,0.765]
[1761420224426,0.00253372,3957.4,3957.3,0.765]
[1761420226824,0.11473372,3957.4,3957.3,0.765]
[1761420242737,0.00253372,3957.4,3957.3,0.765]
[1761420248248,1.35950659,3957.4,3957.3,0.765]
[1761420250457,0.00253372,3957.4,3957.3,0.765]
[1761420251253,3.18096339,3958.7,3957.0,0.1409]
[1761420251254,1.7022089,3958.1,3957.7,0.45476]
[1761420251448,0.2529,3961.0,3958.6,0.3283]
[1761420251449,10.43148652,3959.9,3958.6,0.3283]
[1761420251651,0.1141,3960.5,3959.9,0.3283]
[1761420251957,0.1141,3960.0,3959.9,0.7856]
[1761420252256,0.11660373,3960.0,3959.9,0.78866794]
[1761420253157,0.23070373,3960.0,3959.9,0.78866794]
[1761420256956,0.1141,3961.0,3959.9,0.78866794]
[1761420256957,1.02160906,3960.9,3960.8,0.2224]
[1761420257160,0.2332,3960.8,3960.7,0.3283]
[1761420257462,0.3498,3960.8,3960.7,0.3283]
[1761420257655,0.3498,3960.8,3960.7,0.5507]
[1761420257850,0.23640454,3960.8,3960.7,0.5507]
[1761420262264,0.90192355,3961.6,3960.7,0.7856]
[1761420262462,2.355e-05,3962.1,3962.0,0.9152]
[1761420262669,0.022,3962.8,3962.7,0.7856]
[1761420263064,0.2386,3962.8,3962.7,0.7856]
[1761420263267,0.2386,3962.8,3962.1,0.3283]
[1761420263268,0.45296549,3962.8,3962.1,0.3283]
[1761420263459,0.45296549,3962.8,3962.7,0.0019725]
[1761420264261,9.45196549,3962.8,3962.7,0.0019725]
[1761420264462,9.77726549,3962.8,3962.7,0.0019725]
[1761420266569,0.77826549,3962.8,3962.7,0.0019725]
[1761420266767,9.77326549,3962.8,3962.7,0.0019725]
[1761420268769,17.77326549,3962.8,3962.7,0.0019725]
[1761420277674,0.1292,3965.0,3962.8,0.3283]
[1761420277874,0.1292,3965.0,3962.7,0.2368725]
[1761420277875,0.4287,3964.0,3963.9,0.5507]
[1761420278074,0.5579,3964.0,3963.7,0.547]
[1761420278671,0.56005889,3964.0,3963.8,0.547]
[1761420278874,0.56005889,3964.0,3963.9,0.547]
[1761420279077,1.66385889,3964.0,3963.9,0.547]
[1761420279284,0.43085889,3964.0,3963.9,0.762]
[1761420279576,9.41685889,3964.0,3963.9,0.762]
[1761420279880,9.75435889,3964.0,3963.9,0.762]
[1761420280176,0.782,3963.7,3963.6,0.547]
[1761420280383,9.767,3963.7,3963.6,0.762]
[1761420281473,9.767,3963.7,3963.6,0.2253]
[1761420281977,9.767,3963.7,3963.6,0.547]
[1761420284284,0.2216,3963.2,3963.1,0.4403]
[1761420284778,8.985,3963.7,3963.1,0.762]
[1761420284984,9.767,3963.7,3963.6,0.547]
[1761420285283,0.782,3963.4,3963.3,0.547]
[1761420285580,0.782,3963.5,3963.4,0.4403]
[1761420286181,0.782,3963.5,3963.4,0.762]
[1761420286476,0.3375,3963.9,3963.5,0.4538]
[1761420286781,0.782,3963.6,3963.5,0.8941]
[1761420289385,0.782,3963.6,3963.5,0.547]
[1761420289578,0.782,3963.6,3963.0,0.1296]
[1761420289784,0.782,3963.3,3963.2,0.547]
[1761420289984,9.757,3963.3,3963.2,0.547]
[1761420292281,9.757,3963.3,3963.2,0.762]
[1761420302003,9.744,3963.3,3963.2,0.762]
[1761420303003,9.744,3963.3,3963.2,1.41746543]
[1761420304705,0.319,3963.6,3963.3,0.33]
[1761420305006,0.7668,3963.6,3963.5,0.9125]
[1761420305210,9.7278,3963.6,3963.5,0.9125]
[1761420305405,9.7278,3963.6,3963.5,0.7818]
[1761420307215,9.7278,3963.6,3963.5,1.43888344]
[1761420309312,9.7278,3963.6,3963.5,0.7818]
[1761420312314,11.08533579,3963.6,3963.5,0.7818]
[1761420314007,0.769,3963.2,3963.1,0.5624]
[1761420314207,9.722,3963.2,3963.1,1.21961438]
[1761420315211,9.722,3963.2,3963.1,1.43891438]
[1761420320631,9.722,3963.2,3962.8,0.67894922]
[1761420320632,0.769,3962.9,3962.8,0.218]
[1761420320826,0.5515,3962.8,3962.7,0.0019725]
[1761420321027,0.769,3962.8,3962.7,0.0019725]
[1761420321533,2.12473724,3962.8,3962.7,0.0019725]
[1761420323431,0.769,3962.8,3962.7,0.0019725]
[1761420327430,0.1279,3962.0,3961.7,0.3444]
[1761420327734,0.769,3961.8,3961.7,0.3444]
[1761420327935,0.769,3961.8,3961.7,0.5624]
[1761420328434,2.12258025,3962.8,3962.3,0.3444]
[1761420328737,9.716,3962.7,3962.6,0.7817]
[1761420335136,9.72,3962.7,3962.6,0.7817]
[1761420337737,0.2341,3962.7,3962.6,0.7817]
[1761420337943,0.769,3962.8,3962.7,0.7817]
[1761420338142,4.37,3962.8,3962.7,0.7817]
[1761420346231,0.8107,3962.6,3962.5,0.3506]
[1761420348042,0.8107,3962.6,3962.5,0.805]
[1761420348343,0.8107,3962.4,3962.3,0.3506]
[1761420348645,0.8107,3962.4,3962.3,1.22348457]
[1761420349035,0.8107,3962.4,3962.3,1.45438457]
[1761420350143,0.8107,3962.4,3962.3,0.805]
[1761420351745,0.8107,3962.4,3962.3,1.45474575]
[1761420352137,0.8107,3962.4,3962.3,0.805]
[1761420353746,0.8107,3962.4,3962.3,1.45470731]
[1761420383364,0.8107,3962.4,3962.3,2.1353848]
[1761420396586,0.8107,3962.4,3962.3,1.9044848]
[1761420397086,0.8107,3962.4,3962.3,0.64970731]
[1761420397481,0.7642,3962.2,3962.1,0.5601]
[1761420397785,0.7642,3962.2,3962.1,1.43020906]
[1761420404390,0.7642,3962.2,3962.1,0.7778]
[1761420423500,0.7642,3962.2,3962.1,1.42956684]
[1761420431091,0.7642,3962.2,3962.1,0.65176684]
[1761420431292,0.7642,3962.2,3961.1,2.702]
[1761420431293,0.2121,3961.1,3961.0,0.5652]
[1761420431502,9.6841,3961.1,3961.0,0.5652]
[1761420432195,9.68682713,3961.1,3961.0,0.56817671]
[1761420432797,9.68682713,3961.1,3960.0,0.1314]
[1761420432798,9.68682713,3961.1,3960.2,0.3315]
[1761420433000,0.7821,3960.3,3960.2,0.4583]
[1761420433201,9.6841,3960.3,3960.2,0.4583]
[1761420433393,9.6841,3960.3,3960.2,0.7898]
[1761420433998,9.6841,3960.3,3960.2,0.79180006]
[1761420438609,9.6841,3960.3,3960.2,0.56720006]
[1761420445514,9.6841,3960.3,3960.2,0.00200006]
[1761420446106,0.4384,3959.7,3959.6,0.5652]
[1761420446413,9.6871,3959.7,3959.6,0.5652]
[1761420447215,9.6871,3959.7,3959.6,0.56755296]
[1761420467430,9.6871,3959.7,3959.6,0.00235296]
[1761420467729,9.6871,3959.7,3959.6,0.57795296]
[1761420472235,0.7821,3959.7,3959.6,0.57795296]
[1761420472531,9.6881,3959.7,3959.6,0.57795296]
[1761420475130,10.595746,3959.7,3959.6,0.57795296]
[1761420476237,10.595746,3959.7,3959.6,0.00235296]
[1761420477531,10.60960365,3959.7,3959.6,0.00235296]
[1761420478938,10.60960365,3959.7,3959.6,0.57795296]
[1761420490454,10.60960365,3959.7,3959.6,0.00235296]
[1761420492354,10.60960365,3959.7,3959.6,0.33825296]
[1761420495459,10.60960365,3959.7,3959.6,0.00235296]
[1761420500457,1.70360365,3959.7,3959.6,0.79805296]
[1761420500762,7.48895765,3959.7,3959.6,0.79805296]
[1761420500961,8.05545765,3959.7,3959.6,0.79805296]
[1761420501260,8.05545765,3959.7,3959.6,1.48000309]
[1761420503367,8.05545765,3959.7,3959.6,0.79805296]
[1761420511071,7.82465765,3959.7,3959.6,0.79805296]
[1761420511373,7.48895765,3959.7,3959.6,0.79805296]
[1761420511974,7.82465765,3959.7,3959.6,0.79805296]
[1761420512674,8.05545765,3959.7,3959.6,0.79805296]
[1761420517477,0.79245765,3959.7,3959.6,0.79805296]
[1761420522380,0.79245765,3959.7,3959.6,1.48000309]
[1761420523083,0.79245765,3959.7,3959.6,0.79805296]
[1761420523281,0.79245765,3959.7,3959.6,1.48000309]
[1761420529775,0.907646,3960.1,3959.9,0.79627]
[1761420529980,0.3176,3960.3,3960.0,1.81508064]
[1761420530186,0.2147,3960.3,3960.2,1.46196087]
[1761420530386,0.744,3960.3,3960.2,1.46196087]
[1761420531185,0.744,3960.3,3960.2,0.7801]
[1761420533388,0.4264,3960.3,3960.2,0.7801]
[1761420538187,0.744,3960.3,3960.2,0.7801]
[1761420540292,0.4264,3960.3,3960.2,0.7801]
[1761420546791,0.7553,3960.3,3960.2,0.7801]
[1761420559208,1.662946,3960.3,3960.2,0.7801]
[1761420563409,0.7553,3960.3,3960.2,0.7801]
[1761420569812,0.4264,3960.3,3960.2,0.7801]
[1761420572325,0.2147,3960.3,3960.2,0.7801]
[1761420572526,6.527746,3960.6,3960.5,0.9147]
[1761420573421,5.6201,3960.6,3960.5,0.9147]
[1761420575521,1.361469,3960.7,3960.5,0.5907]
[1761420575727,2.134569,3960.7,3960.6,0.5537]
[1761420580530,0.3198,3960.6,3960.5,0.2296]
[1761420580722,0.7817,3960.6,3960.5,0.4423]
[1761420581327,0.7817,3960.4,3960.3,0.44722133]
[1761420582125,0.7817,3960.4,3960.3,0.2127]
[1761420586131,0.3198,3960.3,3960.0,1.34828064]
[1761420586633,0.4619,3960.1,3960.0,1.34828064]
[1761420586821,0.7817,3960.1,3960.0,1.34828064]
[1761420587134,0.7817,3960.1,3960.0,1.67428064]
[1761420593441,0.7817,3960.1,3960.0,0.7683]
[1761420595628,0.7817,3960.1,3960.0,0.4423]
[1761420597336,0.7817,3960.1,3960.0,0.2127]
[1761420597542,0.7817,3959.8,3959.7,3.3692]
[1761420597838,0.7817,3959.8,3959.7,3.9248]
[1761420598241,0.7817,3959.8,3959.7,1.2228]
[1761420600144,0.7817,3959.8,3959.7,0.7683]
[1761420600444,0.7817,3959.8,3959.7,0.4423]
[1761420602538,0.3489,3959.9,3959.8,0.4545]
[1761420602744,0.221,3960.2,3960.1,0.88356]
[1761420603243,0.5812,3960.5,3960.2,0.351]
[1761420603439,0.78212242,3960.5,3960.3,0.351]
[1761420604046,0.78212242,3960.5,3960.3,0.5648]
[1761420604745,0.7894,3960.4,3960.3,0.5648]
[1761420607650,0.3489,3960.3,3960.0,1.47403921]
[1761420607842,0.7894,3960.1,3960.0,1.47403921]
[1761420612951,0.7894,3960.1,3960.0,1.68933921]
[1761420613151,0.7894,3960.1,3960.0,1.81663921]
[1761420613451,0.7894,3960.1,3960.0,0.9074]
[1761420617757,0.7894,3960.1,3960.0,0.7801]
[1761420625866,0.3286,3960.4,3960.2,0.45445]
[1761420626056,0.5575,3960.4,3960.3,0.7677]
[1761420627264,0.7726,3960.4,3960.3,0.7677]
[1761420632061,0.7726,3960.4,3960.1,0.90938848]
[1761420632365,0.1393,3960.5,3960.1,0.90938848]
[1761420632366,0.444,3960.2,3960.1,0.90938848]
[1761420632566,0.7726,3960.2,3960.1,0.90938848]
[1761420632766,0.7726,3960.2,3960.1,1.45468848]
[1761420633666,0.7726,3960.2,3960.1,0.5453]
[1761420641277,0.7726,3960.2,3960.1,0.7612]
[1761420643578,0.7726,3960.2,3960.1,1.44328228]
[1761420652975,0.7726,3960.2,3960.1,0.90098228]
[1761420653679,0.7726,3960.2,3960.1,1.47748848]
[1761420654278,0.7726,3960.2,3960.1,1.69338848]
[1761420661884,0.1347,3961.0,3959.9,0.4545]
[1761420661885,0.80339155,3960.7,3960.6,0.3228]
[1761420662071,0.3409,3961.5,3961.4,0.7507]
[1761420662270,1.3608709,3961.9,3961.8,0.539]
[1761420662271,0.7858,3961.9,3961.8,0.539]
[1761420662473,0.7858,3961.9,3961.8,0.7507]
[1761420663081,0.78777111,3961.9,3961.8,0.7507]
[1761420663277,0.2125,3962.4,3962.3,0.2162]
[1761420663484,0.2125,3962.4,3962.3,0.7507]
[1761420663983,0.5534,3962.4,3962.3,0.7507]
[1761420664177,0.7858,3962.4,3962.3,0.7507]
[1761420664380,0.78855973,3962.4,3962.3,0.7507]
[1761420683388,0.00275973,3962.4,3962.3,0.7507]
[1761420693303,0.91031796,3962.4,3962.3,0.7507]
[1761420693700,0.00275973,3962.4,3962.3,1.43130937]
[1761420696102,0.9024496,3962.7,3962.3,1.43130937]
[1761420696298,0.28604339,3963.6,3963.1,0.456]
[1761420696495,0.28604339,3963.6,3963.5,0.9375]
[1761420697196,0.00236995,3963.6,3963.5,0.94014504]
[1761420697804,0.55786995,3963.6,3963.5,0.94014504]
[1761420699001,1.3608709,3964.4,3964.1,0.3429]
[1761420699308,0.7908,3964.4,3964.3,0.7905]
[1761420699605,0.99448831,3964.4,3964.3,0.7905]
[1761420699905,0.79366597,3964.4,3964.3,0.7905]
[1761420704004,0.7908,3963.8,3963.7,0.5604]
[1761420704305,0.7908,3963.8,3963.7,0.7905]
[1761420705406,0.5752,3964.0,3963.7,0.4476]
[1761420705611,0.5752,3963.9,3963.8,0.7905]
[1761420707011,0.7908,3963.9,3963.8,0.7905]
[1761420709409,0.7908,3963.9,3963.8,0.5604]
[1761420709613,0.7908,3963.6,3963.5,0.79314504]
[1761420710512,0.7908,3963.6,3963.5,0.92594504]
[1761420710513,0.5752,3963.6,3963.5,0.92594504]
[1761420711509,0.00286597,3964.4,3963.8,0.7905]
[1761420711810,0.00286597,3964.4,3963.5,0.13544504]
[1761420711811,0.4444,3964.3,3964.2,0.7905]
[1761420712212,0.7908,3964.3,3964.0,0.3429]
[1761420712415,0.3464,3964.2,3964.0,0.5604]
[1761420712715,0.562,3964.2,3964.1,0.5604]
[1761420712907,0.7908,3964.2,3964.1,0.7905]
[1761420713107,0.5752,3964.2,3964.1,0.7905]
[1761420715210,0.00286597,3964.4,3964.3,0.4476]
[1761420715419,0.00286597,3964.4,3964.3,0.7905]
[1761420719219,0.57806597,3964.4,3964.3,0.7905]
[1761420719418,0.23166597,3964.4,3964.3,0.7905]
[1761420719609,0.00286597,3964.4,3964.3,0.7905]
[1761420726907,0.90562584,3965.3,3964.3,0.573]
[1761420727111,0.349,3965.5,3965.3,0.4423]
[1761420727313,0.912,3965.5,3965.4,0.5624]
[1761420728021,0.91433958,3965.5,3965.4,0.5624]
[1761420728520,0.91433958,3965.5,3965.4,0.2118]
[1761420729110,0.7764,3965.2,3965.1,0.5528]
[1761420729318,0.7764,3965.2,3965.1,0.7758]
[1761420731618,0.5421,3965.2,3965.1,0.7758]
[1761420732022,0.00233958,3965.5,3965.4,0.7758]
[1761420732316,0.77873958,3965.5,3965.4,0.7758]
[1761420732722,0.3289,3965.4,3965.2,0.3335]
[1761420733321,0.7764,3965.3,3965.2,0.5528]
[1761420733524,0.7764,3965.3,3965.2,0.7758]
[1761420734018,0.33123958,3965.5,3965.4,0.2193]
[1761420734218,0.00233958,3965.5,3965.4,0.7758]
[1761420741533,0.54443958,3965.5,3965.4,0.7758]
[1761420741834,0.90743958,3965.5,3965.4,0.2193]
[1761420742032,0.90743958,3965.5,3965.2,0.3335]
[1761420742222,0.3289,3965.4,3965.3,0.3335]
[1761420742424,0.7764,3965.4,3965.3,0.7758]
[1761420742623,0.7764,3965.4,3965.3,0.2193]
[1761420742824,0.3289,3965.3,3965.1,0.3335]
[1761420743033,0.7764,3965.2,3965.1,0.5528]
[1761420744431,0.7764,3965.2,3965.1,0.7758]
[1761420748329,0.7764,3965.2,3965.1,0.2193]
[1761420748530,0.6919,3965.0,3964.9,0.5528]
[1761420748824,0.9051,3965.0,3964.9,0.2193]
[1761420749031,0.7764,3964.6,3964.5,0.5528]
[1761420749538,0.7764,3964.6,3964.5,0.7758]
[1761420750836,0.7764,3964.6,3964.5,1.58828325]
[1761420751135,0.3289,3965.4,3964.6,0.3335]
[1761420752240,1.23452584,3965.4,3964.6,0.3335]
[1761420752442,0.3289,3965.3,3964.6,0.3335]
[1761420752942,0.7764,3965.3,3965.2,0.2193]
[1761420753141,0.7764,3965.3,3965.2,0.5528]
[1761420753641,0.7764,3965.3,3965.2,0.2193]
[1761420756244,0.3289,3965.2,3965.0,0.5528]
[1761420756539,0.4475,3965.1,3965.0,0.5528]
[1761420756746,0.7764,3965.1,3965.0,0.5528]
[1761420758245,0.7764,3965.1,3965.0,0.7758]
[1761420768950,0.79018415,3965.1,3965.0,0.7758]
[1761420769647,0.799789,3965.1,3965.0,0.7758]
[1761420771638,0.023389,3965.1,3965.0,0.9122]
[1761420772042,0.595089,3965.1,3965.0,0.9122]
[1761420772854,0.023389,3965.1,3965.0,0.9122]
[1761420773252,0.361689,3965.1,3965.0,1.58798325]
[1761420773453,0.595089,3965.1,3965.0,1.58798325]
[1761420778458,0.826689,3965.1,3965.0,1.58798325]
[1761420783653,1.73231484,3965.1,3965.0,0.9122]
[1761420787164,0.92901484,3965.1,3965.0,0.9122]
[1761420789366,0.574189,3965.1,3965.0,0.9122]
[1761420789557,0.808489,3965.1,3965.0,0.7758]
[1761420789755,0.808489,3965.1,3965.0,0.9049]
[1761420790265,1.71411484,3965.1,3965.0,0.9049]
[1761420790765,1.14751484,3965.1,3965.0,0.9049]
[1761420790966,0.92901484,3965.1,3965.0,0.9049]
[1761420793868,0.023389,3965.1,3965.0,1.58068325]
[1761420794165,0.023389,3965.1,3965.0,2.26537216]
[1761420795264,0.02759052,3965.1,3965.0,1.91727216]
[1761420795971,0.00233958,3965.5,3965.1,0.3199]
[1761420796175,0.00233958,3965.5,3965.4,1.20148]
[1761420797361,0.3323,3966.3,3966.2,0.7476]
[1761420797769,0.5508,3966.3,3966.2,0.7476]
[1761420798271,0.7851,3966.3,3966.2,0.7476]
[1761420798464,0.78734256,3966.3,3966.2,0.7476]
[1761420799773,0.78734256,3966.3,3966.2,0.5328]
[1761420799968,0.78734256,3966.3,3966.2,0.2129]
[1761420800362,0.78734256,3966.3,3966.2,0.5328]
[1761420801276,0.78734256,3966.3,3966.2,0.2129]
[1761420801462,0.78734256,3966.3,3966.2,0.5328]
[1761420801874,0.78734256,3966.3,3966.2,0.7476]
[1761420803782,0.55304256,3966.3,3966.2,0.7476]
[1761420803977,0.00224256,3966.3,3966.2,0.7476]
[1761420804475,0.55304256,3966.3,3966.2,0.7476]
[1761420805276,0.78734256,3966.3,3966.2,0.7476]
[1761420805469,0.78734256,3966.3,3966.2,0.2129]
[1761420805665,0.78734256,3966.3,3966.2,0.5328]
[1761420805870,0.78734256,3966.3,3966.2,0.7476]
[1761420809774,0.7851,3965.7,3965.6,0.7476]
[1761420809976,0.7851,3965.7,3965.6,0.2129]
[1761420810280,0.7851,3965.7,3965.6,0.5328]
[1761420811781,0.7851,3965.7,3965.6,0.7476]
[1761420814085,0.9178,3965.5,3965.4,0.2129]
[1761420814877,0.5855,3965.5,3965.0,1.2103034]
[1761420815074,0.7851,3965.1,3965.0,0.5328]
[1761420815473,0.7851,3965.1,3965.0,0.7476]
[1761420816893,0.52418175,3965.1,3965.0,0.7476]
[1761420817088,0.74268175,3965.1,3965.0,0.8767]
[1761420817285,0.2185,3965.1,3965.0,0.8767]
[1761420819090,0.7887,3965.4,3965.3,0.4543]
[1761420819289,0.7887,3965.4,3965.3,0.8054]
[1761420823991,0.2221,3965.3,3965.2,0.8054]
[1761420824292,1.70512584,3965.6,3965.5,0.938]
[1761420824591,1.70512584,3965.6,3965.5,0.3511]
[1761420824794,0.7995,3965.2,3965.1,0.5758]
[1761420825086,0.7995,3965.2,3965.1,0.8054]